{"text_format":"3","workbook":"xlsx","n_sheets":2,"sheets":["Troškovi","Kategorija"],"not_rendered":{"defined_names":5},"read":"whole","date_system":"1900"}

{"sheet":"Troškovi","index":0,"n_rows":25,"n_cols":7,"rows_kept":25,"merged":[[0,1,0,5],[1,1,1,5]]}
[null,"PRORAČUN TROŠKOVA",{"$nulls":4},{"$f":"TODAY()","v":{"v":44575,"d":"4457500.00%"}}]
[null,"Naziv tvrtke"]
[null,"Trošak","Kategorija","Proračun","Stvarni troškovi","Razlika (HRK)","Razlika (%)"]
[null,"Oglašavanje","Operativa",null,null,{"$f":"IFERROR(SUM(Troškovi[[#This Row],[Proračun]]-Troškovi[[#This Row],[Stvarni troškovi]]), \"\")","v":0},{"$f":"IFERROR(SUM(Troškovi[[#This Row],[Razlika (HRK)]]/Troškovi[[#This Row],[Proračun]]),\"\")","v":""}]
[null,"Dugovanja","Operativa",null,null,{"$f":"IFERROR(SUM(Troškovi[[#This Row],[Proračun]]-Troškovi[[#This Row],[Stvarni troškovi]]), \"\")","v":0},{"$f":"IFERROR(SUM(Troškovi[[#This Row],[Razlika (HRK)]]/Troškovi[[#This Row],[Proračun]]),\"\")","v":""}]
[null,"Doprinosi","Operativa",null,null,{"$f":"IFERROR(SUM(Troškovi[[#This Row],[Proračun]]-Troškovi[[#This Row],[Stvarni troškovi]]), \"\")","v":0},{"$f":"IFERROR(SUM(Troškovi[[#This Row],[Razlika (HRK)]]/Troškovi[[#This Row],[Proračun]]),\"\")","v":""}]
[null,"Potrošni materijal","Operativa",null,null,{"$f":"IFERROR(SUM(Troškovi[[#This Row],[Proračun]]-Troškovi[[#This Row],[Stvarni troškovi]]), \"\")","v":0},{"$f":"IFERROR(SUM(Troškovi[[#This Row],[Razlika (HRK)]]/Troškovi[[#This Row],[Proračun]]),\"\")","v":""}]
[null,"Poštarina","Operativa",null,null,{"$f":"IFERROR(SUM(Troškovi[[#This Row],[Proračun]]-Troškovi[[#This Row],[Stvarni troškovi]]), \"\")","v":0},{"$f":"IFERROR(SUM(Troškovi[[#This Row],[Razlika (HRK)]]/Troškovi[[#This Row],[Proračun]]),\"\")","v":""}]
[null,"Najam ili kredit","Operativa",null,null,{"$f":"IFERROR(SUM(Troškovi[[#This Row],[Proračun]]-Troškovi[[#This Row],[Stvarni troškovi]]), \"\")","v":0},{"$f":"IFERROR(SUM(Troškovi[[#This Row],[Razlika (HRK)]]/Troškovi[[#This Row],[Proračun]]),\"\")","v":""}]
[null,"Prodajni troškovi","Operativa",null,null,{"$f":"IFERROR(SUM(Troškovi[[#This Row],[Proračun]]-Troškovi[[#This Row],[Stvarni troškovi]]), \"\")","v":0},{"$f":"IFERROR(SUM(Troškovi[[#This Row],[Razlika (HRK)]]/Troškovi[[#This Row],[Proračun]]),\"\")","v":""}]
[null,"Porezi","Operativa",null,null,{"$f":"IFERROR(SUM(Troškovi[[#This Row],[Proračun]]-Troškovi[[#This Row],[Stvarni troškovi]]), \"\")","v":0},{"$f":"IFERROR(SUM(Troškovi[[#This Row],[Razlika (HRK)]]/Troškovi[[#This Row],[Proračun]]),\"\")","v":""}]
[null,"Režije","Operativa",null,null,{"$f":"IFERROR(SUM(Troškovi[[#This Row],[Proračun]]-Troškovi[[#This Row],[Stvarni troškovi]]), \"\")","v":0},{"$f":"IFERROR(SUM(Troškovi[[#This Row],[Razlika (HRK)]]/Troškovi[[#This Row],[Proračun]]),\"\")","v":""}]
[null,"Ostalo","Operativa",null,null,{"$f":"IFERROR(SUM(Troškovi[[#This Row],[Proračun]]-Troškovi[[#This Row],[Stvarni troškovi]]), \"\")","v":0},{"$f":"IFERROR(SUM(Troškovi[[#This Row],[Razlika (HRK)]]/Troškovi[[#This Row],[Proračun]]),\"\")","v":""}]
[null,"Osiguranje","Operativa",null,null,{"$f":"IFERROR(SUM(Troškovi[[#This Row],[Proračun]]-Troškovi[[#This Row],[Stvarni troškovi]]), \"\")","v":0},{"$f":"IFERROR(SUM(Troškovi[[#This Row],[Razlika (HRK)]]/Troškovi[[#This Row],[Proračun]]),\"\")","v":""}]
[null,"Kamate","Operativa",null,null,{"$f":"IFERROR(SUM(Troškovi[[#This Row],[Proračun]]-Troškovi[[#This Row],[Stvarni troškovi]]), \"\")","v":0},{"$f":"IFERROR(SUM(Troškovi[[#This Row],[Razlika (HRK)]]/Troškovi[[#This Row],[Proračun]]),\"\")","v":""}]
[null,"Telefon","Operativa",null,null,{"$f":"IFERROR(SUM(Troškovi[[#This Row],[Proračun]]-Troškovi[[#This Row],[Stvarni troškovi]]), \"\")","v":0},{"$f":"IFERROR(SUM(Troškovi[[#This Row],[Razlika (HRK)]]/Troškovi[[#This Row],[Proračun]]),\"\")","v":""}]
[null,"Održavanje i popravci","Operativa",null,null,{"$f":"IFERROR(SUM(Troškovi[[#This Row],[Proračun]]-Troškovi[[#This Row],[Stvarni troškovi]]), \"\")","v":0},{"$f":"IFERROR(SUM(Troškovi[[#This Row],[Razlika (HRK)]]/Troškovi[[#This Row],[Proračun]]),\"\")","v":""}]
[null,"Pravni troškovi","Operativa",null,null,{"$f":"IFERROR(SUM(Troškovi[[#This Row],[Proračun]]-Troškovi[[#This Row],[Stvarni troškovi]]), \"\")","v":0},{"$f":"IFERROR(SUM(Troškovi[[#This Row],[Razlika (HRK)]]/Troškovi[[#This Row],[Proračun]]),\"\")","v":""}]
[null,"Amortizacija","Operativa",null,null,{"$f":"IFERROR(SUM(Troškovi[[#This Row],[Proračun]]-Troškovi[[#This Row],[Stvarni troškovi]]), \"\")","v":0},{"$f":"IFERROR(SUM(Troškovi[[#This Row],[Razlika (HRK)]]/Troškovi[[#This Row],[Proračun]]),\"\")","v":""}]
[null,"Dostava","Operativa",null,null,{"$f":"IFERROR(SUM(Troškovi[[#This Row],[Proračun]]-Troškovi[[#This Row],[Stvarni troškovi]]), \"\")","v":0},{"$f":"IFERROR(SUM(Troškovi[[#This Row],[Razlika (HRK)]]/Troškovi[[#This Row],[Proračun]]),\"\")","v":""}]
[null,"Skladištenje","Operativa",null,null,{"$f":"IFERROR(SUM(Troškovi[[#This Row],[Proračun]]-Troškovi[[#This Row],[Stvarni troškovi]]), \"\")","v":0},{"$f":"IFERROR(SUM(Troškovi[[#This Row],[Razlika (HRK)]]/Troškovi[[#This Row],[Proračun]]),\"\")","v":""}]
[null,"Trgovina","Osobne potrebe",null,null,{"$f":"IFERROR(SUM(Troškovi[[#This Row],[Proračun]]-Troškovi[[#This Row],[Stvarni troškovi]]), \"\")","v":0},{"$f":"IFERROR(SUM(Troškovi[[#This Row],[Razlika (HRK)]]/Troškovi[[#This Row],[Proračun]]),\"\")","v":""}]
[null,"Prodajno osoblje","Osobne potrebe",null,null,{"$f":"IFERROR(SUM(Troškovi[[#This Row],[Proračun]]-Troškovi[[#This Row],[Stvarni troškovi]]), \"\")","v":0},{"$f":"IFERROR(SUM(Troškovi[[#This Row],[Razlika (HRK)]]/Troškovi[[#This Row],[Proračun]]),\"\")","v":""}]
[null,"Ostalo","Osobne potrebe",null,null,{"$f":"IFERROR(SUM(Troškovi[[#This Row],[Proračun]]-Troškovi[[#This Row],[Stvarni troškovi]]), \"\")","v":0},{"$f":"IFERROR(SUM(Troškovi[[#This Row],[Razlika (HRK)]]/Troškovi[[#This Row],[Proračun]]),\"\")","v":""}]
[null,"Ukupni troškovi",null,{"$f":"IFERROR(SUM(Troškovi[Proračun]), \"\")","v":0},{"$f":"IFERROR(SUM(Troškovi[Stvarni troškovi]), \"\")","v":0},{"$f":"IFERROR(SUM(Troškovi[Razlika (HRK)]), \"\")","v":0},{"$f":"IFERROR(SUM(Troškovi[[#Totals],[Razlika (HRK)]]/Troškovi[[#Totals],[Proračun]]),\"\")","v":""}]

{"sheet":"Kategorija","index":1,"n_rows":4,"n_cols":2,"rows_kept":4}
[null,"Pretraživanje kategorije"]
[null,"Kategorija"]
[null,"Operativa"]
[null,"Osobne potrebe"]